bitfinex-derivatives/quotes_ETHF0:USTF0_20230401
["timestamp","ask_amount","ask_price","bid_price","bid_amount"]
[1680325685980,2.58446729,1826.2,1826.1,0.86130235]
[1680325686979,1.76446729,1826.2,1826.1,0.86130235]
[1680325692690,1.72281829,1826.2,1826.0,0.86130235]
[1680325692891,1.68209161,1826.1,1826.0,0.86130235]
[1680325693496,1.68209161,1826.1,1825.9,0.86130235]
[1680325693688,0.814,1826.0,1825.9,0.86130235]
[1680325697494,0.9181719,1826.0,1825.9,0.86130235]
[1680325716706,1.49181931,1826.0,1825.9,0.86130235]
[1680325717100,1.49881931,1826.0,1825.9,0.86130235]
[1680325718510,5.80806351,1826.0,1825.7,0.86130235]
[1680325718805,1.39070782,1825.8,1825.7,0.86130235]
[1680325719103,0.817,1825.8,1825.7,0.86130235]
[1680325719308,0.817,1825.8,1825.7,0.86067894]
[1680325725219,0.817,1825.8,1825.6,4.33997718]
[1680325726916,0.81484303,1825.8,1825.6,4.33997718]
[1680325727312,0.814,1825.7,1825.6,2.68582542]
[1680325727520,0.965556,1825.7,1825.6,1.68582542]
[1680325728023,0.965556,1825.7,1825.6,2.36019293]
[1680325728421,0.965556,1825.7,1825.6,1.681012]
[1680325731129,0.965556,1825.7,1825.6,2.3602089]
[1680325731331,0.965556,1825.7,1825.6,1.681012]
[1680325732022,0.965556,1825.7,1825.6,2.36020031]
[1680325734434,0.965556,1825.7,1825.6,2.36020779]
[1680325737231,0.972556,1825.7,1825.6,1.21420984]
[1680325739030,0.972556,1825.7,1825.6,0.67919579]
[1680325739323,8.13111773,1825.7,1825.6,0.86119179]
[1680325739937,8.95011773,1825.7,1825.5,0.86119179]
[1680325740128,1.39092075,1825.6,1825.5,0.86119179]
[1680325741524,0.821,1825.5,1825.4,0.86119179]
[1680325741729,2.21588838,1825.5,1825.3,1.14830732]
[1680325741933,0.821,1825.4,1825.3,1.82759279]
[1680325742133,0.821,1825.4,1825.3,1.14830732]
[1680325742529,1.01070191,1825.4,1825.3,1.14830732]
[1680325742928,1.01070191,1825.4,1825.3,0.8607454]
[1680325743932,1.01070191,1825.4,1825.3,1.40304511]
[1680325747139,1.01070191,1825.4,1825.3,0.54229971]
[1680325747342,1.01070191,1825.4,1825.3,0.8607454]
[1680325748042,1.01070191,1825.4,1825.2,2.46448114]
[1680325748339,1.01070191,1825.4,1825.2,2.99878435]
[1680325748741,1.54500512,1825.4,1825.2,2.99878435]
[1680325749945,1.54500512,1825.4,1825.2,1.39504861]
[1680325751546,0.821,1825.3,1825.2,1.39504861]
[1680325756950,0.821,1825.3,1825.2,0.53430321]
[1680325757249,0.821,1825.3,1825.1,2.52626617]
[1680325757453,0.18978243,1825.2,1825.1,2.52626617]
[1680325757651,0.18978243,1825.2,1825.1,3.06583338]
[1680325760651,0.821,1825.3,1825.2,1.0]
[1680325761046,1.0108014,1825.3,1825.2,1.0]
[1680325763256,1.0108014,1825.3,1825.2,1.8607454]
[1680325765959,0.1898014,1825.3,1825.2,1.8607454]
[1680325766257,0.821,1825.5,1825.2,1.8607454]
[1680325767158,0.817,1825.4,1825.2,1.8607454]
[1680325772463,0.18986272,1825.3,1825.2,1.8607454]
[1680325772961,0.817,1825.4,1825.2,1.8607454]
[1680325775166,0.817,1825.4,1825.2,0.8607454]
[1680325776865,0.817,1825.4,1825.2,1.8607454]
[1680325777265,0.817,1825.4,1825.3,0.8607454]
[1680325777769,0.817,1825.4,1825.2,1.8607454]
[1680325778369,0.817,1825.4,1825.3,0.8607454]
[1680325781173,1.39088838,1825.4,1825.3,0.8607454]
[1680325783170,1.39088838,1825.4,1825.2,2.14830732]
[1680325783171,2.25145011,1825.4,1825.2,2.14830732]
[1680325783371,1.39088838,1825.4,1825.2,1.14830732]
[1680325783564,1.39088838,1825.4,1825.2,1.82765106]
[1680325783760,2.25145011,1825.4,1825.2,1.82765106]
[1680325784371,1.39088838,1825.4,1825.2,1.82765106]
[1680325784671,2.25145011,1825.4,1825.3,1.14830732]
[1680325784865,2.25145011,1825.4,1825.2,1.14830732]
[1680325785060,2.25145011,1825.4,1825.3,1.14830732]
[1680325785266,1.67756173,1825.4,1825.3,1.14830732]
[1680325786977,1.68156173,1825.4,1825.3,1.14830732]
[1680325787674,1.87150448,1825.4,1825.3,1.14830732]
[1680325788372,5.36760682,1825.4,1825.3,0.86240633]
[1680325788975,6.36760682,1825.4,1825.3,0.86240633]
[1680325789378,5.36760682,1825.4,1825.3,0.86240633]
[1680325793276,12.20324908,1825.4,1825.3,0.86240633]
[1680325793468,26.57153527,1825.4,1825.2,0.53952397]
[1680325793674,9.54607586,1825.3,1825.2,0.53952397]
[1680325794671,0.819,1825.2,1825.0,0.86226535]
[1680325794870,5.45795633,1825.1,1825.0,0.86226535]
[1680325796184,4.59686253,1825.1,1825.0,0.86226535]
[1680325798270,5.45795633,1825.1,1825.0,0.86226535]
[1680325798475,4.8838938,1825.1,1824.9,0.86226535]
[1680325798678,0.817,1825.0,1824.9,0.86118895]
[1680325799278,0.817,1825.0,1824.9,0.8611858]
[1680325799484,0.817,1825.0,1824.9,0.86119166]
[1680325806176,1.10095259,1825.0,1824.8,3.49679768]
[1680325806377,0.821,1824.9,1824.8,3.49679768]
[1680325806789,0.821,1824.9,1824.8,2.49679768]
[1680325808083,0.821,1824.9,1824.8,0.86119166]
[1680325809893,0.819,1824.9,1824.7,0.86119166]
[1680325810094,0.821,1824.8,1824.7,0.86119166]
[1680325810883,1.1523767,1824.8,1824.7,0.86119166]
[1680325832605,1.1523767,1824.8,1824.6,2.14830732]
[1680325832806,0.817,1824.7,1824.6,2.14830732]
[1680325833001,0.817,1824.7,1824.6,2.82783541]
[1680325833203,1.14851059,1824.7,1824.6,2.82783541]
[1680325833912,1.14851059,1824.7,1824.6,1.82783541]
[1680325835803,1.14851059,1824.7,1824.6,0.67952809]
[1680325836510,0.33151059,1824.7,1824.6,2.11362366]
[1680325836704,0.33151059,1824.7,1824.6,9.26910026]
[1680325836904,1.39482037,1824.9,1824.6,9.26910026]
[1680325837109,1.39482037,1824.9,1824.8,0.86135443]
[1680325837298,1.39482037,1824.9,1824.8,1.86135443]
[1680325838808,1.39482037,1824.9,1824.8,2.14847258]
[1680325841009,1.726378,1824.9,1824.8,2.14847258]
[1680325841215,1.726378,1824.9,1824.8,1.14847258]
[1680325841410,2.5874718,1824.9,1824.7,5.35627258]
[1680325841609,0.57382037,1824.8,1824.7,5.35627258]
[1680325841808,0.57382037,1824.8,1824.7,6.03579823]
[1680325842812,0.57382037,1824.8,1824.7,4.88732565]
[1680325845115,0.57382037,1824.8,1824.7,3.88732565]
[1680325845708,0.57382037,1824.8,1824.7,1.82916508]
[1680325847114,1.39482037,1824.8,1824.7,1.82916508]
[1680325847710,2.25591417,1824.8,1824.7,1.14963943]
[1680325847905,1.39482037,1824.8,1824.7,1.14963943]
[1680325850916,1.39482037,1824.8,1824.7,0.67956079]
[1680325851115,1.39482037,1824.8,1824.7,1.67956079]
[1680325851918,1.39482037,1824.8,1824.7,2.82937902]
[1680325852317,1.39482037,1824.8,1824.7,2.82937949]
[1680325852520,1.39482037,1824.8,1824.7,1.82937949]
[1680325853219,1.39482037,1824.8,1824.7,0.67956079]
[1680325853621,2.25591417,1824.8,1824.7,1.14982371]
[1680325853821,2.25591417,1824.8,1824.7,1.8293845]
[1680325854720,2.25591417,1824.8,1824.7,1.14982371]
[1680325855114,1.68249868,1824.8,1824.7,1.14982371]
[1680325855917,2.01414628,1824.8,1824.7,1.14982371]
[1680325860012,2.57470131,1824.8,1824.7,1.14982371]
[1680325871143,2.56834443,1824.8,1824.7,1.14982371]
[1680325876440,2.0077894,1824.8,1824.7,1.14982371]
[1680325876946,2.01414628,1824.8,1824.7,1.14982371]
[1680325877141,2.5882642,1824.8,1824.7,1.14982371]
[1680325884153,2.5882642,1824.8,1824.7,1.82938144]
[1680325885452,1.72676552,1824.8,1824.7,1.82938144]
[1680325885746,2.5882642,1824.8,1824.7,1.82938144]
[1680325885949,2.58846117,1824.8,1824.7,1.82938144]
[1680325886451,2.58846117,1824.8,1824.7,1.14982371]
[1680325886645,2.01414628,1824.8,1824.7,1.14982371]
[1680325890847,0.90608013,1824.8,1824.7,5.3214533]
[1680325891155,0.3316476,1824.8,1824.7,11.09828413]
[1680325891352,1e-08,1824.8,1824.7,11.09828413]
[1680325891549,0.22983483,1824.8,1824.7,11.09828413]
[1680325891744,0.57443253,1824.9,1824.7,11.09828413]
[1680325891950,0.57443253,1824.9,1824.8,3.11698531]
[1680325892259,1.39543253,1825.0,1824.8,9.07007987]
[1680325892552,2.25693121,1825.0,1824.9,2.14948915]
[1680325892751,1.39543253,1825.0,1824.9,2.14948915]
[1680325893056,1.39543253,1825.0,1824.9,8.44994791]
[1680325894457,0.57443253,1825.0,1824.9,12.47874791]
[1680325894646,0.57443253,1825.1,1824.9,13.44614687]
[1680325894847,0.57443253,1825.1,1825.0,2.14909648]
[1680325895049,0.57443253,1825.1,1825.0,2.82852619]
[1680325895255,0.57443253,1825.1,1825.0,2.14909648]
[1680325895653,0.57443253,1825.2,1825.0,3.93185621]
[1680325895852,0.86149868,1825.3,1825.1,5.70822863]
[1680325895853,0.57443253,1825.3,1825.1,5.70822863]
[1680325896045,0.57443253,1825.3,1825.2,1.14896261]
[1680325896252,0.57443253,1825.4,1825.2,8.02597969]
[1680325896452,1.43593121,1825.5,1825.3,5.06854465]
[1680325896747,1.43593121,1825.5,1825.4,1.0]
[1680325898357,0.57443253,1825.5,1825.4,1.0]
[1680325899057,0.72576081,1825.5,1825.4,1.0]
[1680325900156,0.15132828,1825.5,1825.4,1.0]
[1680325901461,0.15132828,1825.5,1825.3,4.2078]
[1680325903759,0.15132828,1825.5,1825.2,1.819]
[1680325904553,0.15132828,1825.5,1825.3,6.07968438]
[1680325907059,0.97232828,1825.5,1825.3,6.07968438]
[1680325916969,0.817,1825.4,1825.3,6.07968438]
[1680325917274,0.97346924,1825.4,1825.1,4.78033294]
[1680325918169,0.97346924,1825.4,1825.2,6.11028778]
[1680325924369,0.821,1825.3,1825.0,0.57253294]
[1680325924566,3.36426924,1825.4,1824.9,6.19220818]
[1680325924567,0.817,1825.2,1824.9,6.19220818]
[1680325924869,0.817,1825.2,1824.9,5.33146353]
[1680325927270,0.817,1825.2,1825.0,5.76947463]
[1680325929574,1.35120259,1825.2,1825.0,5.76947463]
[1680325929969,1.35120259,1825.2,1824.8,0.57253294]
[1680325929970,0.821,1825.1,1824.8,0.57253294]
[1680325930169,0.821,1824.9,1824.8,0.86074465]
[1680325930970,1.0238954,1824.9,1824.8,0.86074465]
[1680325931779,1.0238954,1824.9,1824.8,6.94829159]
[1680325932378,0.2028954,1824.9,1824.8,7.76429159]
[1680325932573,0.2028954,1824.9,1824.8,8.76429159]
[1680325932771,0.816,1825.1,1824.8,8.76429159]
[1680325932973,0.816,1825.1,1824.9,0.57335549]
[1680325933173,0.816,1825.1,1824.9,1.57335549]
[1680325935782,0.816,1825.1,1824.9,0.57335549]
[1680325936177,1.39043253,1825.1,1824.9,1.43410014]
[1680325936481,1.39043253,1825.1,1825.0,0.57335549]
[1680325936877,1.39043253,1825.1,1824.9,1.43410014]
[1680325937081,1.38943253,1825.1,1824.9,1.43410014]
[1680325937785,4.59723253,1825.1,1824.9,0.57335549]
[1680325941395,1.38943253,1825.1,1824.9,0.57335549]
[1680325946087,0.20298136,1825.0,1824.9,0.57335549]
[1680325950296,0.77741389,1825.0,1824.8,1.43410014]
[1680325951101,0.20298136,1825.0,1824.9,0.57335549]
[1680325959301,0.77741389,1825.0,1824.9,0.57335549]
[1680325961306,0.77741389,1825.0,1824.9,1.43410014]
[1680325961506,0.77741389,1825.0,1824.9,0.57335549]
[1680325962211,0.77741389,1825.0,1824.9,1.43410014]
[1680325963312,0.77741389,1825.0,1824.9,0.86074465]
[1680325965209,1.63891257,1825.0,1824.9,0.86074465]
[1680325967810,0.77741389,1825.0,1824.9,0.86074465]
[1680325970308,1.06448004,1825.0,1824.9,1.14896261]
[1680325987022,1.06448004,1825.0,1824.9,1.82847167]
[1680325990228,1.05883418,1825.0,1824.9,1.82847167]
[1680325998327,1.05883418,1825.0,1824.9,0.67950906]
[1680325999532,1.63309705,1825.0,1824.9,0.67950906]
[1680326006135,1.63309705,1825.0,1824.9,1.8294005]
[1680326006341,1.63309705,1825.0,1824.9,0.67950906]
[1680326007437,1.63309705,1825.0,1824.9,1.82939046]
[1680326008241,1.63309705,1825.0,1824.9,0.67950906]
[1680326009542,0.77159837,1825.0,1824.9,0.67950906]
[1680326017649,0.77159837,1825.0,1824.9,6.52312416]
[1680326020744,0.77159837,1825.0,1824.9,7.52312416]
[1680326021441,0.77159837,1825.0,1824.9,8.96055174]
[1680326036171,0.77159837,1825.0,1824.9,7.96055174]
[1680326037261,0.77159837,1825.0,1824.9,6.52312416]
[1680326037461,1.05883418,1825.0,1824.9,7.67297347]
[1680326038061,1.87983418,1825.0,1824.9,1.14984931]
[1680326039666,1.87983418,1825.0,1824.8,1.14984931]
[1680326039858,1.3890247,1824.9,1824.8,1.14984931]
[1680326040062,1.59183279,1824.9,1824.8,1.14984931]
[1680326041870,3.1659329,1824.9,1824.8,0.86237919]
[1680326042065,6.3737329,1824.9,1824.8,0.86237919]
[1680326042562,6.3737329,1824.9,1824.8,0.57494667]
[1680326043872,5.3737329,1824.9,1824.8,0.57494667]
[1680326044668,5.3737329,1824.9,1824.7,1.43732586]
[1680326044970,1.67934481,1824.8,1824.7,0.86237919]
[1680326045173,0.819,1824.8,1824.7,1.43672342]
[1680326045377,1.39238768,1824.8,1824.7,0.86237919]
[1680326045671,1.39238768,1824.8,1824.7,1.43670034]
[1680326046873,1.39238768,1824.8,1824.7,0.86237919]
[1680326047276,1.39238768,1824.8,1824.7,0.57419299]
[1680326050772,1.95380696,1824.8,1824.7,0.57419299]
[1680326050967,2.25107008,1824.8,1824.7,0.57419299]
[1680326053470,1.6776824,1824.8,1824.7,0.57419299]
[1680326056073,1.11626312,1824.8,1824.7,0.57419299]
[1680326057079,0.29726312,1824.8,1824.7,0.57419299]
[1680326057279,1.39438768,1824.9,1824.7,0.57419299]
[1680326061782,0.815,1824.8,1824.7,0.57419299]
[1680326063986,1.39438768,1824.9,1824.7,0.57419299]
[1680326064186,0.821,1824.9,1824.7,1.43657218]
[1680326064389,1.39438768,1824.9,1824.7,1.43657218]
[1680326065190,1.39438768,1824.9,1824.8,0.57419299]
[1680326065486,1.39438768,1824.9,1824.7,0.57419299]
[1680326066088,0.26812074,1824.8,1824.7,0.57419299]
[1680326066389,1.39438768,1824.9,1824.7,0.57419299]
[1680326067197,1.39438768,1824.9,1824.7,1.43657218]
[1680326069595,1.39438768,1824.9,1824.7,1.43284768]
[1680326070193,1.39438768,1824.9,1824.7,0.86237919]
[1680326071698,1.39438768,1824.9,1824.6,1.86237919]
[1680326072491,1.39438768,1824.9,1824.7,5.8303311]
[1680326072693,1.39438768,1824.9,1824.8,1.0]
[1680326079203,2.25473249,1824.9,1824.8,1.0]
[1680326079499,1.68134481,1824.9,1824.8,1.86237919]
[1680326080204,1.68134481,1824.9,1824.8,0.86237919]
[1680326081105,1.9495554,1824.9,1824.8,0.86237919]
[1680326083998,1.08921059,1824.9,1824.8,0.86237919]
[1680326084208,1.95007748,1824.9,1824.8,0.86237919]
[1680326084510,1.95006604,1824.9,1824.8,0.86237919]
[1680326085009,1.08921059,1824.9,1824.8,0.86237919]
[1680326085510,1.95008688,1824.9,1824.8,0.86237919]
[1680326085716,2.2373354,1824.9,1824.8,0.86237919]
[1680326086510,1.08921059,1824.9,1824.8,0.86237919]
[1680326087408,1.08921059,1824.9,1824.8,7.11891381]
[1680326090616,2.2373354,1824.9,1824.8,7.11891381]
[1680326094917,2.2373354,1824.9,1824.8,7.11905569]
[1680326107025,2.2353354,1824.9,1824.8,7.11905569]
[1680326109225,2.2353354,1824.9,1824.8,6.25653462]
[1680326110429,2.2353354,1824.9,1824.8,7.11931451]
[1680326111628,2.2353354,1824.9,1824.8,6.25653462]
[1680326112024,2.2353354,1824.9,1824.8,7.11930914]
[1680326112629,2.2353354,1824.9,1824.8,6.25653462]
[1680326116630,2.2353354,1824.9,1824.8,7.11930024]
[1680326116932,2.2353354,1824.9,1824.8,6.25653462]
[1680326117633,2.22985656,1824.9,1824.8,6.25653462]
[1680326118135,2.22985656,1824.9,1824.8,7.11930287]
[1680326118433,2.22985656,1824.9,1824.8,7.11930279]
[1680326119033,2.22985656,1824.9,1824.8,6.25653462]
[1680326125437,2.22985656,1824.9,1824.8,7.1193345]
[1680326125939,2.22985656,1824.9,1824.8,6.25653462]
[1680326127039,2.23185656,1824.9,1824.8,6.25653462]
[1680326129337,2.23185656,1824.9,1824.8,7.40638393]
[1680326131440,1.12423099,1824.9,1824.8,8.08591644]
[1680326131640,0.83709713,1824.9,1824.8,9.37349471]
[1680326134041,0.26273175,1824.9,1824.8,7.93606713]
[1680326134545,0.83709713,1824.9,1824.8,9.08544711]
[1680326135639,0.26273175,1824.9,1824.8,9.37349471]
[1680326135844,0.26273175,1824.9,1824.8,7.93606713]
[1680326136047,0.83709713,1824.9,1824.8,7.93606713]
[1680326136246,0.26273175,1824.9,1824.8,9.08526493]
[1680326137051,0.26273175,1824.9,1824.8,9.90626493]
[1680326142952,0.26273175,1824.9,1824.8,8.22673242]
[1680326153965,0.26273175,1824.9,1824.8,14.70373242]
[1680326157165,0.26273175,1824.9,1824.8,8.22673242]
[1680326157360,0.83709713,1824.9,1824.8,8.22673242]
[1680326163761,0.26273175,1824.9,1824.8,9.22673242]
[1680326164371,0.83709713,1824.9,1824.8,9.22673242]
[1680326167176,0.83709713,1824.9,1824.8,9.22073242]
[1680326169675,0.83709713,1824.9,1824.8,9.90024262]
[1680326170174,0.83709713,1824.9,1824.8,9.22073242]
[1680326171070,0.83709713,1824.9,1824.8,9.90024878]
[1680326171577,0.83709713,1824.9,1824.8,9.22073242]
[1680326171777,0.83709713,1824.9,1824.8,9.90024858]
[1680326175379,1.12423099,1824.9,1824.8,8.22073242]
[1680326175578,1.94023099,1824.9,1824.8,0.86239531]
[1680326175781,1.07873175,1824.9,1824.8,0.86239531]
[1680326176072,2.22685656,1824.9,1824.8,0.86260406]
[1680326176974,2.22485656,1824.9,1824.8,0.86260406]
[1680326177169,1.07673175,1824.9,1824.8,0.86260406]
[1680326177581,2.22485656,1824.9,1824.8,0.86260406]
[1680326178578,2.1584963,1824.9,1824.8,0.86260406]
[1680326178882,1.01037149,1824.9,1824.8,0.86260406]
[1680326179080,2.1584963,1824.9,1824.8,0.86260406]
[1680326179274,1.01037149,1824.9,1824.8,0.86260406]
[1680326179470,2.1584963,1824.9,1824.8,0.86260406]
[1680326179679,1.01037149,1824.9,1824.8,0.86260406]
[1680326180274,2.1584963,1824.9,1824.8,0.86260406]
[1680326181685,2.1584963,1824.9,1824.7,0.86260406]
[1680326181882,0.86065329,1824.8,1824.7,0.86260406]
[1680326185685,1.43427192,1824.8,1824.7,0.86260406]
[1680326186884,0.86065329,1824.8,1824.7,0.86260406]
[1680326187790,1.43422447,1824.8,1824.7,0.86260406]
[1680326189095,0.86065329,1824.8,1824.7,0.85577436]
[1680326191597,0.86065329,1824.8,1824.7,0.57450565]
[1680326192491,1.00433115,1824.8,1824.7,0.57450565]
[1680326195699,1.5517937,1824.8,1824.6,0.57450565]
[1680326195902,3.78106538,1824.7,1824.6,0.57450565]
[1680326196598,3.78106538,1824.7,1824.6,6.76903891]
[1680326197098,4.60206538,1824.7,1824.6,6.76903891]
[1680326198699,1.39426538,1824.7,1824.6,6.76903891]
[1680326199594,4.60206538,1824.7,1824.6,6.76903891]
[1680326200300,1.39426538,1824.7,1824.6,6.76903891]
[1680326201102,4.60206538,1824.7,1824.6,6.76903891]
[1680326205406,1.39426538,1824.7,1824.6,6.76903891]
[1680326207105,0.57326538,1824.7,1824.6,6.76903891]
[1680326207408,0.67578243,1824.7,1824.6,6.76903891]
[1680326209310,2.59517034,1824.7,1824.6,6.19453326]
[1680326213111,2.59517034,1824.7,1824.5,0.57450565]
[1680326213311,1.39412864,1824.6,1824.5,0.57450565]
[1680326218901,2.25478193,1824.6,1824.5,0.57450565]
[1680326220121,1.39412864,1824.6,1824.5,0.57450565]
[1680326220719,1.68165329,1824.6,1824.5,0.57450565]
[1680326222422,1.86705386,1824.6,1824.5,0.57450565]
[1680326224721,2.44040758,1824.6,1824.5,0.57450565]
[1680326225119,1.57975429,1824.6,1824.4,2.68877619]
[1680326226530,1.57975429,1824.6,1824.5,5.71423426]
[1680326227017,0.75875429,1824.6,1824.5,5.71423426]
[1680326227825,0.75875429,1824.6,1824.4,2.68877619]
[1680326230226,1.61940758,1824.6,1824.4,1.68877619]
[1680326230525,0.57335372,1824.5,1824.4,1.68877619]
[1680326237228,0.57335372,1824.5,1824.4,2.36844136]
[1680326237434,0.7588447,1824.5,1824.4,2.36844136]
[1680326239830,0.7588447,1824.5,1824.4,1.68877619]
[1680326240037,1.04614427,1824.5,1824.4,0.53957839]
[1680326240330,1.04614427,1824.5,1824.3,1.1491978]
[1680326240533,0.57364074,1824.4,1824.3,1.1491978]
[1680326241131,1.38864074,1824.4,1824.3,1.1491978]
[1680326246942,1.39464074,1824.4,1824.3,1.1491978]
[1680326252343,1.39464074,1824.4,1824.3,1.82889159]
[1680326252543,1.58022206,1824.4,1824.3,1.82889159]
[1680326253046,1.58022206,1824.4,1824.3,1.1491978]
[1680326253343,1.58022206,1824.4,1824.3,1.82889227]
[1680326255143,1.57326536,1824.4,1824.3,1.82889227]
[1680326265248,1.57326536,1824.4,1824.3,1.1491978]
[1680326266345,1.57326536,1824.4,1824.3,1.82889516]
[1680326269361,1.57326536,1824.4,1824.3,1.1491978]
[1680326270161,1.57326536,1824.4,1824.3,1.828896]
[1680326272656,1.57326536,1824.4,1824.3,1.1491978]
[1680326276869,5.21438132,1824.4,1824.3,0.86256265]
[1680326277060,5.26366406,1824.4,1824.3,0.86256265]
[1680326278162,5.124229,1824.4,1824.3,0.86256265]
[1680326278361,4.26366406,1824.4,1824.3,0.86256265]
[1680326279063,5.26366406,1824.4,1824.3,0.86256265]
[1680326279255,6.12419354,1824.4,1824.3,0.86256265]
[1680326279462,6.41178887,1824.4,1824.3,0.57494601]
[1680326284566,5.26366406,1824.4,1824.3,0.57494601]
[1680326285771,6.41075672,1824.4,1824.3,0.57494601]
[1680326287168,7.23175672,1824.4,1824.3,0.57494601]
[1680326287368,7.23175672,1824.4,1824.2,1.43750866]
[1680326287564,3.50010014,1824.3,1824.2,1.43750866]
[1680326287870,3.734056,1824.3,1824.2,1.43750866]
[1680326289370,3.734056,1824.3,1824.2,0.57494601]
[1680326291269,10.31404852,1824.3,1824.2,0.24329842]
[1680326291467,10.60303172,1824.3,1824.0,0.15]
[1680326291667,5.70128517,1824.1,1824.0,0.15]
[1680326295263,1.0,1824.0,1823.8,0.86256265]
[1680326295460,4.8488,1823.9,1823.7,0.86256265]
[1680326295666,1.64,1823.8,1823.7,0.86256265]
[1680326296471,0.821,1823.9,1823.6,0.86256265]
[1680326296769,0.821,1823.9,1823.7,1.86256265]
[1680326297077,4.0288,1824.0,1823.7,1.86256265]
[1680326297078,0.821,1823.8,1823.7,1.86256265]
[1680326297572,1.07447109,1823.8,1823.7,1.86256265]
[1680326297770,1.07447109,1823.8,1823.7,1.0]
[1680326297971,1.07447109,1823.8,1823.7,1.86256265]
[1680326298174,4.28227109,1823.8,1823.7,1.86256265]
[1680326298367,1.07447109,1823.8,1823.7,1.86256265]
[1680326298564,1.07447109,1823.8,1823.7,1.0]
[1680326299071,1.07447109,1823.8,1823.7,1.86256265]
[1680326299276,1.07447109,1823.8,1823.7,1.0]
[1680326300177,1.07447109,1823.8,1823.6,0.86256265]
[1680326313779,1.07447109,1823.8,1823.7,5.70836265]
[1680326313780,0.25347109,1823.8,1823.7,5.70836265]
[1680326313976,0.815,1824.2,1823.7,12.19275862]
[1680326314279,0.815,1824.2,1823.8,2.68084683]
[1680326314280,0.20226918,1824.1,1823.8,2.68084683]
[1680326314479,0.815,1824.2,1823.9,1.0]
[1680326314685,0.815,1824.2,1823.9,7.01355508]
[1680326315183,1.36502377,1824.2,1823.9,7.01355508]
[1680326316379,1.36502377,1824.2,1823.9,7.87340191]
[1680326317083,0.815,1824.2,1823.9,11.08120191]
[1680326321283,0.815,1824.2,1824.0,0.85984683]
[1680326321488,0.815,1824.2,1824.1,1.0]
[1680326321690,0.815,1824.2,1824.1,7.27718506]
[1680326323083,1.67448517,1824.4,1824.1,7.27718506]
[1680326323283,5.17178023,1824.5,1824.3,0.821]
[1680326323284,3.2078,1824.5,1824.3,0.821]
[1680326323490,4.06728517,1824.5,1824.4,1.0]
[1680326324385,1.67548517,1824.6,1824.4,1.0]
[1680326324785,1.67548517,1824.6,1824.5,5.71828422]
[1680326325788,0.85948517,1824.7,1824.5,6.53328422]
[1680326326092,1.68048517,1824.8,1824.5,9.74108422]
[1680326326284,3.2078,1824.6,1824.3,0.85984683]
[1680326326484,4.8478,1824.4,1824.0,0.85984683]
[1680326326694,0.814,1824.1,1824.0,0.85984683]
[1680326327191,0.817,1824.1,1824.0,0.85984683]
[1680326327485,0.97924925,1824.1,1824.0,0.85984683]
[1680326327994,0.97924925,1824.1,1824.0,7.05654763]
[1680326329787,0.97924925,1824.1,1824.0,8.05654763]
[1680326330189,0.97924925,1824.1,1824.0,11.26434763]
[1680326333586,0.97924925,1824.1,1824.0,10.4045008]
[1680326335797,0.97924925,1824.1,1824.0,11.2654892]
[1680326336402,0.97924925,1824.1,1824.0,11.26547473]
[1680326337098,0.16224925,1824.1,1824.0,11.26547473]
[1680326337399,0.821,1824.3,1824.0,11.26547473]
[1680326337597,0.821,1824.3,1824.1,1.0]
[1680326337995,0.821,1824.3,1824.2,5.92750387]
[1680326339000,1.636,1824.3,1823.9,0.86097393]
[1680326339205,0.816,1824.0,1823.9,0.86097393]
[1680326339393,0.816,1824.0,1823.8,5.06877393]
[1680326339696,0.816,1824.0,1823.9,6.14604788]
[1680326340294,0.816,1824.0,1823.9,7.00702181]
[1680326341095,0.816,1824.0,1823.9,6.14604788]
[1680326341795,0.816,1824.0,1823.9,7.00702181]
[1680326342502,0.98711001,1824.0,1823.9,7.00702181]
[1680326347094,0.17111001,1824.0,1823.9,8.29524568]
[1680326347300,0.17111001,1824.0,1823.9,7.14604788]
[1680326348403,0.17111001,1824.0,1823.9,8.29524568]
[1680326354710,0.17111001,1824.0,1823.9,8.97505917]
[1680326355612,0.17111001,1824.0,1823.9,8.29524568]
[1680326356310,0.17111001,1824.0,1823.9,8.97504967]
[1680326356612,0.17111001,1824.0,1823.9,7.82585187]
[1680326357403,1.67995978,1824.2,1823.9,8.97521321]
[1680326357604,1.67995978,1824.2,1824.1,0.86202261]
[1680326358013,1.67995978,1824.2,1824.1,6.82009152]
[1680326359816,0.85895978,1824.2,1824.1,6.82009152]
[1680326360019,0.85895978,1824.2,1824.1,6.95806891]
[1680326360711,0.85895978,1824.3,1824.1,6.95806891]
[1680326360918,0.85895978,1824.3,1824.2,1.86227524]
[1680326361315,0.85895978,1824.3,1824.2,8.00875579]
[1680326361915,5.17212037,1824.4,1824.2,8.00875579]
[1680326362521,0.86023649,1824.3,1824.2,8.00875579]
[1680326368836,0.86023649,1824.5,1824.2,13.29240108]
[1680326369021,0.86023649,1824.5,1824.4,1.68312184]
[1680326369227,0.86023649,1824.5,1824.4,0.821]
[1680326369427,0.86023649,1824.6,1824.4,10.98195347]
[1680326369629,1.14532037,1824.7,1824.5,1.86210962]
[1680326369826,0.86045612,1824.6,1824.5,1.86210962]
[1680326370130,0.86045612,1824.6,1824.5,1.0]
[1680326371834,0.86045612,1824.6,1824.5,7.0642534]
[1680326372235,0.86045612,1824.6,1824.5,7.8802534]
[1680326372637,0.89476705,1824.6,1824.5,7.8802534]
[1680326372929,0.03431093,1824.6,1824.5,7.8802534]
[1680326373132,0.86045612,1824.7,1824.5,7.8802534]
[1680326375236,0.57296927,1824.6,1824.5,7.8802534]
[1680326375830,1.43342539,1824.7,1824.5,7.8802534]
[1680326376141,0.86045612,1824.7,1824.6,3.2078]
[1680326376538,0.86045612,1824.7,1824.6,9.04192211]
[1680326376730,1.43324833,1824.7,1824.6,9.04192211]
[1680326377230,0.86045612,1824.7,1824.6,9.04192211]
[1680326378232,0.57269607,1824.7,1824.6,9.04192211]
[1680326378437,1.43315219,1824.7,1824.6,9.04192211]
[1680326378829,0.57269607,1824.7,1824.6,9.04192211]
[1680326383940,1.38769607,1824.8,1824.6,9.04192211]
[1680326384144,1.38769607,1824.8,1824.7,1.0]
[1680326384548,1.38769607,1824.8,1824.7,6.97797778]
[1680326385244,1.38769607,1824.8,1824.7,6.97134937]
[1680326386939,0.57269607,1824.8,1824.7,6.97134937]
[1680326388846,2.25215219,1824.9,1824.7,6.97134937]
[1680326389241,0.57269607,1824.8,1824.7,6.97134937]
[1680326389436,2.25215219,1824.9,1824.7,6.97134937]
[1680326389644,0.57269607,1824.8,1824.7,6.97134937]
[1680326389847,2.25215219,1824.9,1824.7,6.97134937]
[1680326390741,1.39169607,1824.9,1824.7,6.97134937]
[1680326390945,0.57269607,1824.9,1824.8,3.2078]
[1680326391153,0.57269607,1825.2,1824.9,0.817]
[1680326391452,0.57269607,1825.2,1825.1,0.821]
[1680326391845,0.57269607,1825.2,1825.1,7.95873736]